[Event "44th Chess Olympiad Open 2022"]
[Site "Chennai"]
[Date "2022.08.05"]
[Round "7.3"]
[White "Moussard, Jules"]
[Black "Giri, Anish"]
[Result "1/2-1/2"]
[ECO "B30"]
[WhiteElo "2672"]
[BlackElo "2760"]
[Annotator "TA"]
[PlyCount "71"]
[EventDate "2022.07.29"]
[EventType "team-tourn"]
[EventCountry "IND"]
[SourceTitle "playchess.com"]
[Source "ChessBase"]
[SourceQuality "1"]
[WhiteTeam "France"]
[BlackTeam "Netherlands"]
[WhiteTeamCountry "FRA"]
[BlackTeamCountry "NED"]
[TimeControl "40/5400+30:1800+30"]

{[%evp 16,71,19,12,35,35,35,35,35,35,35,35,35,35,43,47,47,33,35,35,45,9,14,15,25,25,25,19,19,21,35,14,15,14,14,11,18,18,18,18,20,20,26,7,6,8,8,8,8,0,0,0,0,0,0,0,0,0]} 1. e4 {[%emt 0:00:03]} c5 {[%emt 0:00:04]} 2. Nf3 {[%emt 0:00:06]} Nc6 {[%emt 0:00:03]} 3. Bb5 {[%emt 0:01:48]} e6 {[%emt 0:00:07]} 4. O-O {[%emt 0:01:20]} Nge7 {[%emt 0:00:18]} 5. c3 {[%emt 0:05:09]} a6 {[%emt 0:01:06]} 6. Ba4 {[%emt 0:00:05]} b5 {[%emt 0:00:26]} 7. Bc2 {[%emt 0:00:07]} Bb7 {[%emt 0:00:09]} 8. Re1 {[%emt 0:02:28]} Rc8 {[%emt 0:04:56]} 9. a4 {[%emt 0:01:54]} Ng6 {[%emt 0:01:20] B30: Sicilian: 2...Nc6 3 Bb5, lines without ...g6.} 10. axb5 {[%emt 0:06:03]} axb5 {[%emt 0:00:10]} 11. d4 {[%emt 0:00:04]} cxd4 {[%emt 0:00:45] White is slightly better.} 12. Nxd4 {[%emt 0:00:04]} Nxd4 {[%emt 0:25:07]} 13. Qxd4 {[%emt 0:00:47]} Qf6 {[%emt 0:08:05] [#] aiming for ...Qxd4.} 14. Be3 {[%emt 0:41:23]} Qxd4 {[%emt 0:01:45]} 15. Bxd4 {[%emt 0:02:05] [#]} Be7 $146 {[%emt 0:08:42]} ({Predecessor:} 15... f6 16. b4 Be7 17. Ra5 Bc6 18. Bd3 Bd8 19. Ra7 Ne5 20. Be2 g5 21. f3 Rg8 {1-0 (60) De Heer,M (2340)-Ferreira,J (2330) ICCF email 2014}) 16. Ra7 {[%emt 0:03:54]} ({Of course not} 16. Bxg7 Rg8 17. Bd4 Nh4 $15) 16... Bc6 {[%emt 0:00:09]} 17. Nd2 {[%emt 0:00:20]} ({But not} 17. Bxg7 Rg8 18. Bd4 Nh4 $15) 17... O-O {[%emt 0:03:06]} 18. Nb3 {[%emt 0:02:38]} Ra8 {[%emt 0:01:21]} 19. Rea1 {[%emt 0:00:35]} Rxa7 {[%emt 0:04:48]} 20. Rxa7 {[%emt 0:00:08]} Ra8 {[%emt 0:00:23]} 21. Rxa8+ {[%emt 0:01:07]} Bxa8 {[%emt 0:00:03]} 22. f3 {[%emt 0:07:57]} e5 {[%emt 0:07:36]} 23. Bc5 {[%emt 0:01:10]} Kf8 {[%emt 0:02:18]} 24. Bd3 {[%emt 0:04:59]} Bc6 {[%emt 0:01:48]} 25. g3 {[%emt 0:00:11]} Bxc5+ {[%emt 0:09:48]} 26. Nxc5 $11 {[%emt 0:00:05][%mdl 4096] Endgame KBN-KBN} Ke7 {[%emt 0:00:11]} 27. Kf2 {[%emt 0:02:50]} f6 {[%emt 0:05:24]} 28. Ke3 {[%emt 0:02:56]} Kd8 {[%emt 0:01:10]} 29. b4 {[%emt 0:02:30]} Kc7 {[%emt 0:00:41] The position is equal.} 30. f4 {[%emt 0:02:38]} Ne7 {[%emt 0:01:56]} 31. h4 {[%emt 0:03:29]} Nc8 {[%emt 0:03:02]} 32. c4 {[%emt 0:03:02]} Nd6 {[%emt 0:02:35]} 33. Na6+ {[%emt 0:00:25]} Kb7 {[%emt 0:01:18]} 34. Nc5+ {[%emt 0:00:05]} Kc7 {[%emt 0:00:15]} 35. Na6+ {[%emt 0:00:47]} Kb7 {[%emt 0:00:06]} 36. Nc5+ {[%emt 0:00:05] Weighted Error Value: White=0.04 (flawless) /Black=0.03 (flawless)} 1/2-1/2

[Event "44th Chess Olympiad Open 2022"]
[Site "Chennai"]
[Date "2022.08.05"]
[Round "7.3"]
[White "Lagarde, Maxime"]
[Black "L'Ami, Erwin"]
[Result "1-0"]
[ECO "A37"]
[WhiteElo "2631"]
[BlackElo "2634"]
[Annotator "TA"]
[PlyCount "91"]
[EventDate "2022.07.29"]
[EventType "team-tourn"]
[EventCountry "IND"]
[SourceTitle "playchess.com"]
[Source "ChessBase"]
[SourceQuality "1"]
[WhiteTeam "France"]
[BlackTeam "Netherlands"]
[WhiteTeamCountry "FRA"]
[BlackTeamCountry "NED"]
[TimeControl "40/5400+30:1800+30"]

{[%evp 12,91,16,0,0,0,-14,-19,0,-4,-1,-2,0,0,0,0,-3,0,89,16,14,13,10,18,39,35,56,2,125,127,122,131,128,129,127,128,122,127,129,124,124,52,133,6,130,126,116,101,146,117,178,131,131,131,146,133,138,131,242,131,131,131,331,319,238,139,132,143,1754,1683,1814,1802,1865,1842,1704,1670,1561,1379,1282,612,1109,1036]} 1. c4 {[%emt 0:00:03]} c5 {[%emt 0:00:25]} 2. Nc3 {[%emt 0:00:38]} Nc6 {[%emt 0:00:12]} 3. Nf3 {[%emt 0:00:08]} e5 {[%emt 0:01:32]} 4. g3 {[%emt 0:01:57]} g6 {[%emt 0:01:06]} 5. Bg2 {[%emt 0:01:41]} Bg7 {[%emt 0:00:39]} 6. a3 {[%emt 0:01:25]} Nge7 {[%emt 0:00:55] 6...Nge7 is better than 6...a5.} 7. b4 {[%emt 0:09:25]} d5 {[%emt 0:01:49] [#] A37: Symmetrical English vs ...g6: 4 Bg2 Bg7 5 Nf3.} 8. b5 $146 {[%emt 0:05:26]} ({Predecessor:} 8. cxd5 Nxd5 9. Nxd5 Qxd5 10. Bb2 O-O 11. O-O e4 12. Bxg7 Kxg7 13. Ne1 cxb4 14. axb4 Nxb4 15. Qb1 Qxd2 16. Qxe4 {0-1 (36) Bogosavljevic,B (2522)-Perunovic,M (2543) Paracin 2022}) 8... Na5 {[%emt 0:09:36] And now ...e4 would win.} 9. cxd5 {[%emt 0:05:11]} Nxd5 {[%emt 0:06:54] The position is equal.} 10. Nxd5 {[%emt 0:00:48] Threatens to win with e4.} Qxd5 {[%emt 0:00:11]} 11. Bb2 {[%emt 0:05:36]} O-O {[%emt 0:05:10]} 12. d3 {[%emt 0:04:14]} a6 {[%emt 0:12:12]} 13. a4 {[%emt 0:08:11]} axb5 {[%emt 0:13:17]} 14. axb5 {[%emt 0:07:04]} Bd7 {[%emt 0:01:59]} (14... c4 $1 $11) 15. Bc3 {[%emt 0:11:34]} (15. O-O $1 $16) 15... e4 $11 {[%emt 0:11:03]} 16. Bxg7 {[%emt 0:00:18]} Kxg7 {[%emt 0:00:09]} 17. Nd2 {[%emt 0:00:50]} Bxb5 {[%emt 0:01:24]} 18. O-O {[%emt 0:02:53]} c4 {[%emt 0:05:03]} 19. Ra3 {[%emt 0:15:52]} (19. Bxe4 $14 Qe5 20. Qb1) 19... Nb3 {[%emt 0:10:47]} (19... cxd3 $11 {keeps the balance.} 20. Qa1+ f6 21. Rxa5 (21. Bxe4 Qd6 $17) 21... dxe2 22. Rxa8 Rxa8 23. Qxa8 Qxd2 24. Qxb7+ Bd7) 20. Bxe4 {[%emt 0:02:26]} Qe6 {[%emt 0:00:39]} 21. Rxa8 {[%emt 0:01:54]} (21. Nxc4 Bxc4 22. Rxa8 Rxa8 $11) 21... Rxa8 {[%emt 0:00:07]} 22. dxc4 {[%emt 0:00:54]} Nxd2 {[%emt 0:04:55]} 23. Bd5 {[%emt 0:00:53]} ({But not} 23. Qxd2 Bxc4 24. Bxb7 (24. Qb2+ Qf6 $11) 24... Ra4) 23... Qe5 {[%emt 0:02:10]} 24. Qxd2 {[%emt 0:00:05]} Bc6 {[%emt 0:00:48]} 25. e4 $36 {[%emt 0:01:44][%mdl 2048] Black is under strong pressure.} Ra3 {[%emt 0:01:06]} 26. Qb4 {[%emt 0:03:14]} (26. Rb1 $16) 26... Ra2 {[%emt 0:01:10]} (26... Rd3 $1 $14) 27. Qb6 {[%emt 0:00:38]} (27. Qb3 $16 Qb2 28. Qf3) 27... Rb2 {[%emt 0:01:08] [#]} (27... Bxd5 $1 $11 28. exd5 Qc3) 28. Qe3 $1 $16 {[%emt 0:00:27]} Rc2 {[%emt 0:01:04]} 29. Rc1 {[%emt 0:02:16]} Ra2 {[%emt 0:02:12]} 30. h4 {[%emt 0:01:35]} h5 {[%emt 0:00:59]} (30... Bxd5 $16 31. exd5 (31. cxd5 Ra4 $16) 31... Qxe3 32. fxe3 Rb2) 31. Qc3 {[%emt 0:01:39]} (31. Qf3 $18 Qe7 32. Rb1) 31... Qxc3 {[%emt 0:00:19]} 32. Rxc3 {[%emt 0:00:02][%mdl 4096] Endgame KRB-KRB} Rb2 {[%emt 0:00:22]} 33. Rf3 {[%emt 0:01:06]} Be8 {[%emt 0:00:22]} 34. Ra3 {[%emt 0:01:10]} Kf6 {[%emt 0:02:37]} (34... Bd7 $16 35. e5 Re2) 35. f4 {[%emt 0:01:50]} (35. e5+ $18 Kg7 36. Ra8) 35... Bd7 {[%emt 0:02:36]} 36. Ra7 {[%emt 0:00:25]} Bc8 $2 {[%emt 0:00:15] [#]} (36... Be6 $16 {was worth a try.} 37. Rxb7 Rxb7 38. Bxb7 Bxc4) 37. c5 $1 $18 {[%emt 0:00:54]} Kg7 {[%emt 0:01:07]} 38. Ra8 {[%emt 0:01:02]} ({White should try} 38. c6 $18 {[%cal Rc6b7]} bxc6 39. Rxf7+ Kh6 40. Bxc6) 38... Be6 $16 {[%emt 0:00:29]} 39. Rb8 {[%emt 0:00:36]} Bxd5 {[%emt 0:00:34][%mdl 8192] Loses the game.} (39... Rc2 $16) 40. exd5 {[%emt 0:00:04][%cal Be4d5,Bd5d6][%mdl 32] KR-KR. White is clearly winning.} Rd2 {[%emt 0:00:32]} 41. d6 {[%emt 0:05:43]} Rd5 {[%emt 0:01:30]} 42. Kf2 {[%emt 0:01:09]} Kf6 {[%emt 0:08:49]} 43. Re8 {[%emt 0:00:58]} Rd1 {[%emt 0:01:27]} 44. Ke2 {[%emt 0:01:25]} Rd4 {[%emt 0:00:48]} 45. Re3 {[%emt 0:02:19]} (45. Ke3 $142 Rd1 46. Rb8) 45... Ra4 {[%emt 0:03:17]} 46. Kd3 {[%emt 0:01:30] Weighted Error Value: White=0.33/Black=0.36} 1-0

[Event "44th Chess Olympiad Open 2022"]
[Site "Chennai"]
[Date "2022.08.05"]
[Round "7.3"]
[White "Bok, Benjamin"]
[Black "Maurizzi, Marc`Andria"]
[Result "1-0"]
[ECO "D37"]
[WhiteElo "2616"]
[BlackElo "2506"]
[Annotator "TA"]
[PlyCount "113"]
[EventDate "2022.07.29"]
[EventType "team-tourn"]
[EventCountry "IND"]
[SourceTitle "playchess.com"]
[Source "ChessBase"]
[SourceQuality "1"]
[WhiteTeam "Netherlands"]
[BlackTeam "France"]
[WhiteTeamCountry "NED"]
[BlackTeamCountry "FRA"]
[TimeControl "40/5400+30:1800+30"]

{[%evp 9,113,24,18,26,30,29,28,27,31,31,30,30,34,26,35,24,27,29,29,24,29,35,27,18,33,30,45,0,38,0,0,0,24,7,20,5,0,0,0,0,8,8,57,58,62,56,159,130,150,64,148,16,77,22,240,240,238,230,245,245,244,243,235,190,192,184,177,163,240,234,231,228,240,241,237,222,420,381,396,415,408,400,468,442,468,457,579,465,5830,6103,1962,633,514,0,1867,329,1848,1865,5693,12813,6590,5385,2185,652,1543,1381]} 1. d4 {[%emt 0:00:03]} Nf6 {[%emt 0:00:05]} 2. c4 {[%emt 0:00:07]} e6 {[%emt 0:00:03]} 3. Nf3 {[%emt 0:00:05]} a6 {[%emt 0:00:53]} 4. Nc3 {[%emt 0:00:08]} d5 {[%emt 0:00:01]} 5. cxd5 {[%emt 0:00:07]} exd5 {[%emt 0:00:01]} 6. Bg5 {[%emt 0:00:12] D37: Queen's Gambit Declined: 5 Bf4.} Be6 {[%emt 0:00:01]} 7. e3 {[%emt 0:00:11]} Nbd7 {[%emt 0:00:12]} 8. h3 {[%emt 0:00:10] White has an edge.} c6 {[%emt 0:16:15]} 9. Bd3 {[%emt 0:02:31]} Bd6 {[%emt 0:00:31]} 10. Bf4 {[%emt 0:00:10]} Qc7 {[%emt 0:00:40] [#]} 11. Qc1 $1 $146 {[%emt 0:00:06][%mdl 8] An important novelty.} ({Predecessor:} 11. Qd2 O-O 12. O-O Rfe8 13. Rfe1 Nh5 14. Bxd6 Qxd6 15. e4 Qf4 16. exd5 Bxd5 17. Nxd5 cxd5 {½-½ (39) Ding,L (2799)-Vidit,S (2723) chess24.com INT 2022}) 11... h6 {[%emt 0:01:24]} 12. a4 {[%emt 0:01:47]} c5 {[%emt 0:10:50]} 13. Bxd6 {[%emt 0:13:28]} Qxd6 {[%emt 0:00:02]} 14. a5 {[%emt 0:00:10]} O-O {[%emt 0:06:22]} 15. O-O {[%emt 0:01:20]} Rac8 {[%emt 0:01:52]} 16. Qd2 {[%emt 0:02:26]} Rfe8 {[%emt 0:00:55]} 17. Rfd1 {[%emt 0:13:19]} cxd4 {[%emt 0:10:41]} 18. exd4 {[%emt 0:12:48]} Nh5 {[%emt 0:22:36][%cal Bf6h5,Bh5f4,Bf4d3][%mdl 32]} 19. Na4 {[%emt 0:12:51]} Nf4 {[%emt 0:00:00]} 20. Ne5 {[%emt 0:07:15][%cal Bf3e5,Be5d3,Bd3c5][%mdl 32]} Nxd3 {[%emt 0:00:00]} 21. Nxd3 {[%emt 0:00:24]} Rc4 {[%emt 0:00:00]} 22. Ndc5 {[%emt 0:01:23] Black should prevent b3.} Bf5 {[%emt 0:02:08] Strongly threatening ...Rc2.} 23. Re1 {[%emt 0:18:23]} Rxe1+ {[%emt 0:03:23]} 24. Rxe1 {[%emt 0:00:05]} Qg6 {[%emt 0:07:49]} 25. Qe3 {[%emt 0:02:50] And now Nxd7 would win.} Nf6 {[%emt 0:02:15]} (25... Nxc5 $11 26. Nxc5 Rc2) 26. Nc3 $14 {[%emt 0:01:09]} Rb4 {[%emt 0:02:30]} 27. b3 {[%emt 0:01:59]} Be4 {[%emt 0:02:03]} (27... Kh7 $14) 28. f3 $16 {[%emt 0:01:43] Active counter play!} Bf5 {[%emt 0:00:12]} 29. Kh2 {[%emt 0:01:09]} (29. g4 $16) 29... Kh7 {[%emt 0:00:59]} (29... Qg5 $14) 30. Qe5 {[%emt 0:03:23]} (30. g4 $16) 30... Qg5 {[%emt 0:02:59]} (30... Nd7 $1 $11 31. Nxd7 (31. Qxd5 Nxc5 32. Qxc5 Rxb3 $11) 31... Bxd7) 31. Re2 {[%emt 0:00:28]} ({White should play} 31. g4 $16 Bc8 32. Na2) 31... Be6 {[%emt 0:03:29] [#] Black is on the road to losing.} (31... Nd7 $11 32. Qxd5 Nxc5 33. dxc5 Be6 34. Qxg5 hxg5) 32. Na2 $1 $18 {[%emt 0:01:38]} (32. Nxe6 fxe6 33. Qxg5 hxg5 $11) 32... Rb5 {[%emt 0:00:30]} 33. Qxg5 {[%emt 0:01:39]} (33. Nxe6 fxe6 34. Qxg5 hxg5 $14) 33... hxg5 {[%emt 0:00:01] [#]} 34. b4 {[%emt 0:00:12] Threatens to win with Rb2.} ({Weaker is} 34. Nxe6 fxe6 35. b4 (35. Rxe6 Rxb3 36. Re7 b5 $11) 35... b6 $14) 34... b6 {[%emt 0:02:18]} 35. Nxa6 {[%emt 0:00:12]} ({Less strong is} 35. Nxe6 fxe6 36. Rxe6 bxa5 $14) 35... bxa5 {[%emt 0:00:30]} 36. Nc7 {[%emt 0:00:14] Pair of Knights!} Rb7 {[%emt 0:00:20]} 37. Nxe6 {[%emt 0:00:04]} fxe6 {[%emt 0:00:01]} 38. bxa5 {[%emt 0:00:07][%mdl 4096] Endgame KRN-KRN} Ra7 {[%emt 0:00:01]} (38... Rb3 $142 39. Rxe6 Ra3) 39. Rxe6 {[%emt 0:00:24] Black must now prevent a6.} Rxa5 {[%emt 0:00:05]} 40. Nc3 {[%emt 0:00:14]} Kg6 {[%emt 0:04:54]} 41. Re5 {[%emt 0:31:31]} Kh6 {[%emt 0:20:16]} 42. Ne4 {[%emt 0:00:00]} Nh5 $2 {[%emt 0:00:00]} (42... Ra4 {keeps fighting.}) 43. Nxg5 {[%emt 0:00:00]} Nf4 {[%emt 0:00:00]} 44. Ne6 {[%emt 0:00:00]} Nd3 {[%emt 0:00:00]} 45. Re3 {[%emt 0:00:00]} Nb4 {[%emt 0:00:00]} 46. h4 {[%emt 0:00:00]} Nc2 {[%emt 0:00:00]} 47. Re2 {[%emt 0:00:00]} Nb4 {[%emt 0:00:00]} 48. Ng5 {[%emt 0:00:00] Intending Re6+ and mate.} Kg6 {[%emt 0:00:00]} (48... Ra6 $142 49. Re5 Ra7 50. Re6+ g6) 49. Re6+ {[%emt 0:00:00]} Kf5 {[%emt 0:00:00]} 50. Re5+ {[%emt 0:00:00]} (50. g4+ $142 Kf4 51. Re2) 50... Kf6 {[%emt 0:00:00]} 51. Re6+ {[%emt 0:00:00]} (51. g4 $142 Ra6 52. h5) 51... Kf5 {[%emt 0:00:00]} 52. g4+ {[%emt 0:00:00]} Kf4 {[%emt 0:00:00]} 53. Re2 {[%emt 0:00:00] Threatening mate with Kg2. White is clearly winning.} Ra2 {[%emt 0:00:00]} 54. Rxa2 {[%emt 0:00:00]} Nxa2 {[%emt 0:00:00]} 55. Kg2 {[%emt 0:00:00] White threatens Kf2 and mate.} Nc3 {[%emt 0:00:00]} 56. Ne6+ {[%emt 0:00:00]} Ke3 {[%emt 0:00:00]} 57. h5 {[%emt 0:00:25] Weighted Error Value: White=0.37/Black=0.32} 1-0

[Event "44th Chess Olympiad Open 2022"]
[Site "Chennai"]
[Date "2022.08.05"]
[Round "7.4"]
[White "Bluebaum, Matthias"]
[Black "Ivic, Velimir"]
[Result "1/2-1/2"]
[ECO "D02"]
[WhiteElo "2673"]
[BlackElo "2581"]
[Annotator "TA"]
[PlyCount "67"]
[EventDate "2022.07.29"]
[EventType "team-tourn"]
[EventCountry "IND"]
[SourceTitle "playchess.com"]
[Source "ChessBase"]
[SourceQuality "1"]
[WhiteTeam "Germany"]
[BlackTeam "Serbia"]
[WhiteTeamCountry "GER"]
[BlackTeamCountry "SRB"]
[TimeControl "40/5400+30:1800+30"]

{[%evp 11,67,0,4,16,5,0,-8,-9,28,6,18,-14,-11,-16,-18,-6,0,0,31,0,-5,-6,18,13,15,22,45,53,62,54,59,29,41,51,49,62,70,11,19,26,20,24,69,52,70,51,71,60,54,8,14,8,8,8,9,3,16,16]} 1. Nf3 {[%emt 0:00:05]} d5 {[%emt 0:00:37]} 2. g3 {[%emt 0:00:17]} g6 {[%emt 0:00:57]} 3. Bg2 {[%emt 0:01:00]} Bg7 {[%emt 0:00:15]} 4. d4 {[%emt 0:00:21]} Nf6 {[%emt 0:00:11]} 5. O-O {[%emt 0:00:19]} O-O {[%emt 0:00:12]} 6. Be3 {[%emt 0:07:24]} c6 {[%emt 0:06:55]} 7. Qc1 {[%emt 0:05:15] D02: 1 d4 d5 2 Nf3 sidelines, including 2...Nf6 3 g3 and 2...Nf6 3 Bf4.} Bf5 {[%emt 0:03:47]} 8. c4 {[%emt 0:00:41] [#]} Qb6 $146 {[%emt 0:16:32]} ({Predecessor:} 8... dxc4 9. Qxc4 Nbd7 10. Nc3 Ne4 11. Qb3 Nb6 12. Rfd1 Rc8 13. Rac1 Be6 14. Qc2 Nxc3 15. bxc3 {½-½ (45) Hausrath,D (2503)-Cheparinov,I (2681) Berlin 2015}) 9. h3 {[%emt 0:17:59]} Na6 {[%emt 0:06:16]} 10. a3 {[%emt 0:07:53]} Ne4 {[%emt 0:05:59]} 11. b4 {[%emt 0:08:10]} dxc4 {[%emt 0:02:41]} 12. Ne5 {[%emt 0:08:07]} Nd6 {[%emt 0:05:52]} 13. Nd2 {[%emt 0:02:56]} Qd8 {[%emt 0:05:21][%cal Oc4c3]} 14. Ndxc4 {[%emt 0:02:22]} Nxc4 {[%emt 0:02:02]} 15. Qxc4 {[%emt 0:00:49][%cal Oe5c6]} Be6 {[%emt 0:01:10]} 16. Qc2 {[%emt 0:04:35][%cal Ob4b5]} Bd5 {[%emt 0:00:50]} 17. f3 {[%emt 0:04:24]} Nc7 {[%emt 0:06:11]} 18. Bf2 {[%emt 0:01:46]} a5 {[%emt 0:04:10]} 19. bxa5 {[%emt 0:05:03]} Rxa5 {[%emt 0:00:00][%cal Oc6c5]} 20. e4 {[%emt 0:00:24] White is more active.} Be6 {[%emt 0:00:00]} 21. a4 $1 {[%emt 0:00:03] Prevents Nb5.} c5 {[%emt 0:06:20]} ({Much less strong is} 21... Bxe5 22. dxe5 Ra6 23. Rfb1 $16) 22. Qc3 {[%emt 0:01:29]} Qa8 {[%emt 0:03:06][%cal Oc5d4]} 23. f4 {[%emt 0:00:49] Black must now prevent d5.} Rc8 {[%emt 0:04:21]} 24. dxc5 {[%emt 0:03:15]} (24. d5 $14 Bd7 25. Rfb1) 24... Rxa4 {[%emt 0:02:36]} (24... Bd7 $5) 25. Rxa4 {[%emt 0:00:52]} Qxa4 {[%emt 0:00:07]} 26. Rb1 {[%emt 0:00:01]} f6 {[%emt 0:09:42]} 27. Nd3 {[%emt 0:02:31]} (27. Ra1 $5 {[%cal Ra1a4]} Qe8 28. Nc4 $14) 27... f5 {[%emt 0:02:23]} 28. Qb4 {[%emt 0:03:34]} Qd7 {[%emt 0:01:57]} 29. exf5 {[%emt 0:02:18]} (29. c6 {is more complex.} Qxc6 30. exf5 Bd5 31. Rc1) 29... gxf5 {[%emt 0:02:40]} 30. Ne1 {[%emt 0:03:24]} (30. Rd1 $14 {deserves consideration.}) 30... Na6 $11 {[%emt 0:01:49] The position is equal.} 31. Qxb7 {[%emt 0:04:07]} Nxc5 {[%emt 0:00:07]} 32. Qxd7 {[%emt 0:00:30]} Nxd7 {[%emt 0:00:26]} 33. Nf3 {[%emt 0:00:35]} Bd5 {[%emt 0:00:46]} 34. Rd1 {[%emt 0:01:13] Weighted Error Value: White=0.09 (flawless) /Black=0.10 (very precise)} 1/2-1/2